[Event "17th Asian Continental-ch Women 2018"]
[Site "Makati City"]
[Date "2018.12.13"]
[Round "4.6"]
[White "Nguyen, Thi Thanh An"]
[Black "Gong, Qianyun"]
[Result "0-1"]
[ECO "A00"]
[WhiteElo "2262"]
[BlackElo "2312"]
[PlyCount "118"]
[EventDate "2018.12.07"]
[EventType "swiss"]
[EventCountry "PHI"]
[TimeControl "40/5400+30:1800+30"]

1. d4 Nf6 2. c4 e6 3. Nc3 Bb4 4. Qc2 b6 5. a3 Bxc3+ 6. Qxc3 Bb7 7. Nf3 d6 8. g3 Nbd7 9. Bg2 O-O 10. O-O Qe7 11. b4 Rac8 12. Bb2 Be4 13. Rfd1 c6 14. Rac1 Rfd8 15. a4 h6 16. Ba3 Nf8 17. Qe3 Qb7 18. Bb2 a5 19. bxa5 bxa5 20. Bc3 Ra8 21. d5 e5 22. dxc6 Qxc6 23. Bh3 Qxa4 24. Ra1 Qxc4 25. Bxa5 Nd5 26. Qd2 Re8 27. Ne1 Nf6 28. f3 Bb7 29. e3 Qd5 30. Qxd5 Nxd5 31. Kf2 e4 32. f4 Ne6 33. Bf1 Nc5 34. Bc4 Nf6 35. Rxd6 Ng4+ 36. Ke2 Nxh2 37. Bc3 Rxa1 38. Bxa1 Ra8 39. Bd4 Ba6 40. Bxa6 Nxa6 41. Bb6 Nb4 42. Rd8+ Rxd8 43. Bxd8 Nd5 44. Ba5 Ne7 45. Nc2 Nf5 46. Be1 Ng4 47. Bf2 Kh7 48. Nb4 Kg6 49. Nd5 Kh5 50. Be1 Nf6 51. Nxf6+ gxf6 52. Bc3 Nxg3+ 53. Kf2 Kg4 54. Bxf6 h5 55. Kg2 h4 56. Bd4 h3+ 57. Kh2 Nf1+ 58. Kh1 Kf3 59. Bb6 Nxe3 0-1

[Event "17th Asian Continental-ch Women 2018"]
[Site "Makati City"]
[Date "2018.12.13"]
[Round "4.7"]
[White "Ning, Kaiyu"]
[Black "Alinasab, Mobina"]
[Result "1-0"]
[ECO "A00"]
[WhiteElo "2247"]
[BlackElo "2295"]
[PlyCount "63"]
[EventDate "2018.12.07"]
[EventType "swiss"]
[EventCountry "PHI"]
[TimeControl "40/5400+30:1800+30"]

1. d4 Nf6 2. c4 e6 3. Nf3 a6 4. Nc3 d5 5. cxd5 exd5 6. Bg5 Be6 7. e3 Nbd7 8. Bd3 Bd6 9. Bf4 Bxf4 10. exf4 Bg4 11. Qe2+ Kf8 12. O-O c6 13. Rfe1 Bxf3 14. Qxf3 Qb6 15. g4 Qxd4 16. g5 Ne8 17. Bf5 Nb6 18. Ne2 Qb4 19. b3 Nc7 20. Ng3 Re8 21. Rxe8+ Nxe8 22. a3 Qd6 23. Re1 Nc7 24. Bg4 Ne6 25. f5 Nc7 26. f6 gxf6 27. Nf5 Qd8 28. Qh3 h5 29. gxh6 Ne6 30. h7 Nc8 31. Qh6+ Ke8 32. Qg7 1-0

[Event "17th Asian Continental-ch Women 2018"]
[Site "Makati City"]
[Date "2018.12.13"]
[Round "4.8"]
[White "Bach, Ngoc Thuy Duong"]
[Black "Gu, Tianlu"]
[Result "1/2-1/2"]
[ECO "A00"]
[WhiteElo "2131"]
[BlackElo "2231"]
[PlyCount "61"]
[EventDate "2018.12.07"]
[EventType "swiss"]
[EventCountry "PHI"]
[TimeControl "40/5400+30:1800+30"]

1. d4 Nf6 2. c4 e6 3. Nc3 d5 4. cxd5 Nxd5 5. e4 Nxc3 6. bxc3 c5 7. Nf3 cxd4 8. cxd4 Bb4+ 9. Bd2 Bxd2+ 10. Qxd2 O-O 11. Be2 b6 12. O-O Bb7 13. Qe3 Nc6 14. a3 h6 15. Rac1 Qd6 16. Rfd1 Rfd8 17. h3 Rac8 18. Bc4 Na5 19. Ba2 b5 20. d5 Rxc1 21. Qxc1 exd5 22. Bxd5 Bxd5 23. Rxd5 Qb6 24. Rxd8+ Qxd8 25. Qc5 a6 26. Ne5 f6 27. Nc6 Nxc6 28. Qxc6 Qa5 29. Qc8+ Kh7 30. Qf5+ Kg8 31. Qc8+ 1/2-1/2

[Event "17th Asian Continental-ch Women 2018"]
[Site "Makati City"]
[Date "2018.12.13"]
[Round "4.9"]
[White "Doroy Allaney Jia G"]
[Black "Nakhbayeva, Guliskhan"]
[Result "1-0"]
[ECO "A00"]
[WhiteElo "1972"]
[BlackElo "2371"]
[PlyCount "95"]
[EventDate "2018.12.07"]
[EventType "swiss"]
[EventCountry "PHI"]
[TimeControl "40/5400+30:1800+30"]

1. c4 Nf6 2. g3 c6 3. Bg2 d5 4. cxd5 cxd5 5. d4 Nc6 6. Nf3 Bf5 7. O-O e6 8. Nc3 Be7 9. Nh4 Bg4 10. h3 Bh5 11. g4 Nd7 12. Nf5 exf5 13. gxh5 Nf6 14. e3 Qd7 15. a3 O-O 16. b4 a5 17. Na4 Rad8 18. Nc5 Qc8 19. Bd2 b6 20. Nd3 Qa6 21. Qb1 b5 22. Nc5 Bxc5 23. bxc5 Ne4 24. Qd3 Qb7 25. Rfb1 Rb8 26. Be1 f4 27. Bxe4 dxe4 28. Qxe4 Qd7 29. d5 Qxh3 30. Qxf4 Ne7 31. d6 Nf5 32. f3 Qxh5 33. Rb2 Nxe3 34. Qxe3 Rbe8 35. Qc3 b4 36. axb4 axb4 37. Rxb4 f5 38. Bg3 Kh8 39. Be5 Qg5+ 40. Kf1 Rf7 41. c6 f4 42. d7 Ref8 43. c7 Qg3 44. c8=Q Qh3+ 45. Ke2 Qg2+ 46. Kd1 Qf1+ 47. Kc2 Qe2+ 48. Kb3 1-0

[Event "17th Asian Continental-ch Women 2018"]
[Site "Makati City"]
[Date "2018.12.13"]
[Round "4.10"]
[White "Li, Yunshan"]
[Black "Nithyalakshmi, Sivanesan"]
[Result "1-0"]
[ECO "A00"]
[WhiteElo "2196"]
[BlackElo "1942"]
[PlyCount "93"]
[EventDate "2018.12.07"]
[EventType "swiss"]
[EventCountry "PHI"]
[TimeControl "40/5400+30:1800+30"]

1. d4 d6 2. Nf3 f5 3. Nc3 Nf6 4. Bg5 Nbd7 5. e3 g6 6. Bd3 Bg7 7. e4 fxe4 8. Nxe4 Nxe4 9. Bxe4 Nf6 10. Bd3 O-O 11. h3 Be6 12. Qe2 Bf7 13. O-O Qd7 14. Rae1 Rae8 15. Bc4 Nd5 16. Qe4 c6 17. Qh4 Nc7 18. Bxf7+ Rxf7 19. Qg3 Qf5 20. c3 Qd5 21. a3 a5 22. Re2 Ne6 23. Bc1 Bf6 24. Rfe1 Ng7 25. Nd2 a4 26. Ne4 Ref8 27. Nxf6+ exf6 28. Qd3 b5 29. Bh6 Rb8 30. Bxg7 Kxg7 31. Qg3 Rd8 32. Re6 Kf8 33. Qe3 Kg7 34. Re8 Rxe8 35. Qxe8 f5 36. Qd8 f4 37. Re8 g5 38. f3 Kg6 39. Rg8+ Rg7 40. Qe8+ Kf6 41. Qf8+ Rf7 42. Qd8+ Ke6 43. Rxg5 Qb3 44. Qe8+ Kf6 45. Rg4 Qd1+ 46. Kh2 Qd2 47. Qxc6 1-0

[Event "17th Asian Continental-ch Women 2018"]
[Site "Makati City"]
[Date "2018.12.13"]
[Round "4.11"]
[White "Makhija, Aashna"]
[Black "Li, Xueyi"]
[Result "1/2-1/2"]
[ECO "A00"]
[WhiteElo "2181"]
[BlackElo "2187"]
[PlyCount "127"]
[EventDate "2018.12.07"]
[EventType "swiss"]
[EventCountry "PHI"]
[TimeControl "40/5400+30:1800+30"]

1. e4 c6 2. d4 d5 3. Nd2 dxe4 4. Nxe4 Nf6 5. Nxf6+ exf6 6. c3 Bd6 7. Bd3 O-O 8. Ne2 Qc7 9. Qc2 h5 10. Be3 Be6 11. h3 Re8 12. O-O Nd7 13. c4 Nf8 14. Rad1 h4 15. c5 Be7 16. Bf4 Qd7 17. Nc3 g6 18. Be3 f5 19. d5 Bxd5 20. Bc4 Bxc4 21. Rxd7 Nxd7 22. Rd1 Rad8 23. b3 Ba6 24. b4 Ne5 25. b5 Bxb5 26. Nxb5 cxb5 27. Rxd8 Rxd8 28. Qb2 Nc4 29. Qxb5 Rd1+ 30. Kh2 Nxe3 31. fxe3 Bf6 32. Qe8+ Kg7 33. Qb8 a5 34. a4 Rc1 35. Qd6 Re1 36. Qf4 Ra1 37. Qc7 g5 38. g4 Ra2+ 39. Kh1 Ra1+ 40. Kh2 fxg4 41. hxg4 Rxa4 42. Qxb7 Be5+ 43. Kg1 h3 44. Qd5 h2+ 45. Kg2 Rxg4+ 46. Kf2 Bf6 47. c6 Rg1 48. c7 Rc1 49. Kg3 h1=Q 50. Qxh1 Rxh1 51. c8=Q a4 52. Qa6 Ra1 53. Kg4 a3 54. Kf5 Bb2 55. Qb6 Rf1+ 56. Kg4 Bf6 57. Qa6 Rg1+ 58. Kf5 Bb2 59. e4 g4 60. e5 Rf1+ 61. Qxf1 a2 62. Qa6 a1=Q 63. Qf6+ Kf8 64. Qd8+ 1/2-1/2

[Event "17th Asian Continental-ch Women 2018"]
[Site "Makati City"]
[Date "2018.12.13"]
[Round "4.12"]
[White "Zhang, Xiao"]
[Black "Wang, Jue"]
[Result "0-1"]
[ECO "A00"]
[WhiteElo "2017"]
[BlackElo "2367"]
[PlyCount "47"]
[EventDate "2018.12.07"]
[EventType "swiss"]
[EventCountry "PHI"]
[TimeControl "40/5400+30:1800+30"]

1. d4 Nf6 2. c4 e6 3. Nf3 d5 4. e3 Nbd7 5. Bd3 a6 6. b3 Bb4+ 7. Nbd2 b6 8. O-O Bb7 9. Bb2 Rc8 10. a3 Be7 11. Qe2 dxc4 12. Nxc4 c5 13. Nce5 Ra8 14. Rfd1 Nxe5 15. dxe5 Nd7 16. Rd2 b5 17. a4 b4 18. Rad1 Qc7 19. Rc2 g5 20. Nd2 Rg8 21. Nc4 g4 22. Rcd2 Bf3 23. Qe1 Bxd1 24. Qxd1 0-1

[Event "17th Asian Continental-ch Women 2018"]
[Site "Makati City"]
[Date "2018.12.13"]
[Round "4.13"]
[White "Frayna, Janelle Mae"]
[Black "Mordido, Kylen Joy"]
[Result "1-0"]
[ECO "A00"]
[WhiteElo "2228"]
[BlackElo "2045"]
[PlyCount "69"]
[EventDate "2018.12.07"]
[EventType "swiss"]
[EventCountry "PHI"]
[TimeControl "40/5400+30:1800+30"]

1. e4 c5 2. Nf3 e6 3. g3 Nc6 4. Bg2 Nf6 5. Qe2 d5 6. exd5 Nxd5 7. O-O Be7 8. Rd1 Bf6 9. Nc3 O-O 10. Ne4 Be7 11. d4 cxd4 12. Nxd4 Nxd4 13. Rxd4 Qb6 14. Rd1 Rd8 15. c4 Nf6 16. Be3 Qc7 17. Rxd8+ Bxd8 18. Rd1 e5 19. Bg5 Be6 20. Bxf6 gxf6 21. b3 Be7 22. Nc3 Rd8 23. Nd5 Bxd5 24. Bxd5 Bf8 25. Qg4+ Bg7 26. Kg2 b6 27. Qh4 Rd7 28. Re1 h6 29. Re4 Qc5 30. Rg4 Rxd5 31. Qxh6 Qf8 32. cxd5 f5 33. Rxg7+ Qxg7 34. Qxg7+ Kxg7 35. h4 1-0

[Event "17th Asian Continental-ch Women 2018"]
[Site "Makati City"]
[Date "2018.12.13"]
[Round "4.14"]
[White "Karenza, Dita"]
[Black "Mendoza, Shania Mae"]
[Result "0-1"]
[ECO "A00"]
[WhiteElo "1944"]
[BlackElo "2165"]
[PlyCount "72"]
[EventDate "2018.12.07"]
[EventType "swiss"]
[EventCountry "PHI"]
[TimeControl "40/5400+30:1800+30"]

1. d4 d5 2. Bf4 Nf6 3. e3 g6 4. Nf3 Bg7 5. Be2 O-O 6. O-O c5 7. h3 Nc6 8. c3 b6 9. Nbd2 Bb7 10. Re1 Nd7 11. Bh2 e5 12. dxe5 Ncxe5 13. Nxe5 Nxe5 14. Nf3 Nd7 15. a4 a6 16. Qc2 Rc8 17. Rad1 Qe7 18. c4 Nf6 19. Qb3 dxc4 20. Bxc4 Bxf3 21. gxf3 Qb7 22. e4 Nh5 23. Rd6 Qe7 24. Bxa6 Ra8 25. Bf1 Bd4 26. Qc2 Qg5+ 27. Kh1 Qh4 28. Kg1 Rxa4 29. Rxb6 Rfa8 30. Qd2 Ra1 31. Kg2 Rxe1 32. Qxe1 Ra1 33. Qd2 Rd1 34. Qe2 Qg5+ 35. Kh1 Qc1 36. Kg2 Rd2 0-1

[Event "17th Asian Continental-ch Women 2018"]
[Site "Makati City"]
[Date "2018.12.13"]
[Round "4.15"]
[White "Secopito, Catherine"]
[Black "Bernales, Christy Lamiel"]
[Result "1/2-1/2"]
[ECO "A00"]
[WhiteElo "2145"]
[BlackElo "1996"]
[PlyCount "92"]
[EventDate "2018.12.07"]
[EventType "swiss"]
[EventCountry "PHI"]
[TimeControl "40/5400+30:1800+30"]

1. d4 Nf6 2. Nf3 d5 3. e3 g6 4. c4 Bg7 5. Nc3 O-O 6. cxd5 Nxd5 7. Qb3 Nb6 8. Be2 Nc6 9. O-O Be6 10. Qd1 Qd7 11. Ne4 Bc4 12. Nc5 Qc8 13. Bxc4 Nxc4 14. Qc2 Nd6 15. Bd2 e5 16. d5 Ne7 17. Qb3 b6 18. Na4 Rd8 19. Bc3 Qf5 20. Rfd1 c5 21. dxc6 Nxc6 22. Rd5 Ne7 23. Rdd1 b5 24. Qa3 Nec8 25. Nc5 Nb6 26. Na6 Nbc4 27. Qb3 Rac8 28. a4 bxa4 29. Rxa4 Nb6 30. Raa1 Ne4 31. Rxd8+ Rxd8 32. Ba5 Rd6 33. Nc7 Qd7 34. Na6 Qc8 35. Nb4 Nd2 36. Nxd2 Rxd2 37. Bxb6 axb6 38. Nd5 Qb7 39. e4 Bf8 40. Qc3 Rd4 41. Rc1 b5 42. Qb3 Qa6 43. Qf3 Rc4 44. Rd1 Rd4 45. Rc1 Rc4 46. Rd1 Rd4 1/2-1/2

[Event "17th Asian Continental-ch Women 2018"]
[Site "Makati City"]
[Date "2018.12.13"]
[Round "4.16"]
[White "Anisa, Aay Aisyah"]
[Black "San Diego, Marie Antoinette"]
[Result "0-1"]
[ECO "A00"]
[WhiteElo "1985"]
[BlackElo "2111"]
[PlyCount "116"]
[EventDate "2018.12.07"]
[EventType "swiss"]
[EventCountry "PHI"]
[TimeControl "40/5400+30:1800+30"]

1. e4 c5 2. Nf3 g6 3. d4 cxd4 4. Qxd4 Nf6 5. Bb5 Bg7 6. e5 Ng8 7. O-O a6 8. Ba4 b5 9. Bb3 Nc6 10. Qe4 f5 11. exf6 Nxf6 12. Qh4 d5 13. a4 b4 14. a5 O-O 15. Ba4 Nxa5 16. Qxb4 Bf5 17. Nc3 Rb8 18. Qh4 e6 19. Ne5 Ne4 20. Qxd8 Rfxd8 21. Nd7 Nxc3 22. bxc3 Rb7 23. Nc5 Ra7 24. Be3 Nc4 25. Nxe6 Nxe3 26. Nxd8 Nxf1 27. Kxf1 Bxc3 28. Rd1 d4 29. Nc6 Rd7 30. Ne5 Rd6 31. Ke2 Kg7 32. f4 d3+ 33. cxd3 Bxe5 34. fxe5 Bg4+ 35. Ke3 Bxd1 36. Bxd1 Rb6 37. d4 a5 38. d5 Rb4 39. Kd3 a4 40. Kc3 a3 41. Bb3 Rb6 42. h3 Kf8 43. Kc2 Rb4 44. Kc3 Re4 45. d6 Rxe5 46. Kb4 Re2 47. Kxa3 Rd2 48. Kb4 Rxd6 49. Kc3 h5 50. Bc4 Kg7 51. Bd3 Kf6 52. Kd2 Kg5 53. Ke2 Kf4 54. Bc2 Kg3 55. Kf1 g5 56. Be4 Rd1+ 57. Ke2 Rg1 58. h4 gxh4 0-1

[Event "17th Asian Continental-ch Women 2018"]
[Site "Makati City"]
[Date "2018.12.13"]
[Round "4.17"]
[White "Galas, Bernadette"]
[Black "Mejia, Cherry Ann"]
[Result "1/2-1/2"]
[ECO "A00"]
[WhiteElo "2100"]
[BlackElo "1980"]
[PlyCount "44"]
[EventDate "2018.12.07"]
[EventType "swiss"]
[EventCountry "PHI"]
[TimeControl "40/5400+30:1800+30"]

1. e4 Nf6 2. Nc3 d5 3. exd5 Nxd5 4. d4 Nxc3 5. bxc3 e6 6. Nf3 c5 7. Ne5 a6 8. Qf3 Qf6 9. Qg3 h6 10. Nc4 Nd7 11. Be2 b5 12. Ne5 Nxe5 13. dxe5 Qe7 14. c4 b4 15. O-O Bb7 16. Rd1 Rd8 17. Bb2 Qg5 18. Rxd8+ Qxd8 19. Qb3 Be7 20. Rd1 Qc7 21. Qg3 O-O 22. Bd3 Rd8 1/2-1/2

[Event "17th Asian Continental-ch Women 2018"]
[Site "Makati City"]
[Date "2018.12.13"]
[Round "4.18"]
[White "Wang, Ying"]
[Black "Fronda, Jan Jodilyn"]
[Result "0-1"]
[ECO "A00"]
[WhiteElo "1324"]
[BlackElo "2139"]
[PlyCount "108"]
[EventDate "2018.12.07"]
[EventType "swiss"]
[EventCountry "PHI"]
[TimeControl "40/5400+30:1800+30"]

1. Nf3 Nf6 2. d4 c5 3. c4 cxd4 4. Nxd4 e5 5. Nf3 Nc6 6. Nc3 Bc5 7. h3 e4 8. Nh2 O-O 9. e3 d6 10. Ng4 Bf5 11. Nxf6+ Qxf6 12. Nd5 Qe5 13. Qb3 Be6 14. Qc3 Bxd5 15. Qxe5 dxe5 16. cxd5 Nb4 17. Kd1 Rfd8 18. Bc4 Nxd5 19. Kc2 Rac8 20. Kb3 Ne7 21. a4 Rd6 22. Ka2 Nc6 23. Be2 Rcd8 24. Kb1 Na5 25. Kc2 Bb4 26. b3 Rc8+ 27. Bc4 Nxc4 28. bxc4 Rd3 29. Bb2 Rxc4+ 30. Kb1 f6 31. Ka2 Rc2 32. Rhc1 Rxf2 33. Rc8+ Kf7 34. Rc7+ Kg6 35. Rxb7 a5 36. Rc1 Rxe3 37. Rbc7 Rxg2 38. R1c2 Rxc2 39. Rxc2 Rxh3 40. Re2 Kf5 41. Bc1 g5 42. Be3 Rxe3 43. Rxe3 Kf4 44. Rb3 e3 45. Rxb4+ axb4 46. a5 e2 47. a6 e1=Q 48. a7 Qf2+ 49. Kb3 Qxa7 50. Kxb4 Qc7 51. Kb3 Qc5 52. Kb2 Qc4 53. Kb1 Qe2 54. Kc1 g4 0-1

[Event "17th Asian Continental-ch Women 2018"]
[Site "Makati City"]
[Date "2018.12.13"]
[Round "4.19"]
[White "San Diego, Jerlyn Mae"]
[Black "Doan, Thi Van Anh"]
[Result "0-1"]
[ECO "A00"]
[WhiteElo "1932"]
[BlackElo "1950"]
[PlyCount "156"]
[EventDate "2018.12.07"]
[EventType "swiss"]
[EventCountry "PHI"]
[TimeControl "40/5400+30:1800+30"]

1. e4 c6 2. d4 d5 3. exd5 cxd5 4. Nf3 Nc6 5. c3 Nf6 6. Bd3 Bg4 7. h3 Bh5 8. Bf4 e6 9. Nbd2 Bd6 10. Bxd6 Qxd6 11. Qa4 O-O 12. O-O a6 13. Rae1 b5 14. Qc2 Rfc8 15. Qb1 b4 16. Ne5 bxc3 17. bxc3 Rab8 18. Qa1 Qa3 19. Nb3 Nxe5 20. Rxe5 Bg6 21. Bxg6 hxg6 22. Re2 Ne4 23. Rc2 Rc4 24. f3 Ng3 25. Qc1 Qd6 26. Re1 Nf5 27. Ree2 Rbc8 28. Na5 R4c7 29. Nb3 Kh7 30. Qe1 Qf4 31. g4 Nh6 32. Kg2 g5 33. Nc5 a5 34. a4 Ng8 35. h4 Ne7 36. hxg5 Ng6 37. Qd2 Nh4+ 38. Kh3 Qxf3+ 39. Kh2 Qxg4 40. Qd3+ Nf5 41. Qh3+ Qxh3+ 42. Kxh3 Kg6 43. Kg4 Rxc5 44. dxc5 Rxc5 45. Ra2 Rc4+ 46. Kh3 Rxc3+ 47. Kh2 Nd4 48. Reb2 Kxg5 49. Rb7 f5 50. Rxg7+ Kf4 51. Ra7 Rc5 52. Rf2+ Ke3 53. Rf1 f4 54. Re7 Nf3+ 55. Kh3 e5 56. Rb1 d4 57. Rb5 Rxb5 58. axb5 d3 59. Rd7 Nd4 60. Rxd4 exd4 61. b6 d2 62. b7 d1=Q 63. b8=Q Qh5+ 64. Kg2 f3+ 65. Kg3 Qg6+ 66. Kh3 Qe6+ 67. Kg3 Qg6+ 68. Kh3 Qf5+ 69. Kg3 f2 70. Qe8+ Kd2 71. Qa4 f1=Q 72. Qa2+ Ke3 73. Qb3+ Q1d3 74. Qxd3+ Kxd3 75. Kg2 Ke3 76. Kh2 Qg4 77. Kh1 Kf2 78. Kh2 Qh4# 0-1

[Event "17th Asian Continental-ch Women 2018"]
[Site "Makati City"]
[Date "2018.12.14"]
[Round "5.4"]
[White "Zhu, Jiner"]
[Black "Ning, Kaiyu"]
[Result "1-0"]
[ECO "A00"]
[WhiteElo "2409"]
[BlackElo "2247"]
[PlyCount "103"]
[EventDate "2018.12.07"]
[EventType "swiss"]
[EventCountry "PHI"]
[TimeControl "40/5400+30:1800+30"]

1. e4 e6 2. d4 d5 3. Nc3 Bb4 4. e5 c5 5. dxc5 Ne7 6. Nf3 Nd7 7. Bd3 Qc7 8. O-O Bxc3 9. bxc3 Nxc5 10. Re1 Bd7 11. Nd4 Nxd3 12. Qxd3 Rc8 13. Re3 Qc4 14. Qd2 Nc6 15. Ba3 Qa4 16. Nxc6 Qxa3 17. Nd4 O-O 18. Rae1 Qe7 19. f4 b5 20. g4 a5 21. f5 exf5 22. gxf5 Qg5+ 23. Qg2 Qxg2+ 24. Kxg2 b4 25. e6 fxe6 26. fxe6 Be8 27. cxb4 axb4 28. Re5 Rc4 29. Rd1 Bg6 30. Rd2 Be4+ 31. Kg1 g6 32. e7 Re8 33. Nb5 Rc6 34. Rf2 Bf5 35. Nd4 Rf6 36. Rf4 Kf7 37. Nxf5 Rxf5 38. Rfxf5+ gxf5 39. Rxd5 Kxe7 40. Re5+ Kd7 41. Rxe8 Kxe8 42. Kf2 Kd7 43. Ke2 Kc6 44. c3 Kb5 45. cxb4 Kxb4 46. Ke3 Ka3 47. Kf4 Kxa2 48. Kxf5 Kb3 49. Kg5 Kc4 50. Kh6 Kd5 51. Kxh7 Ke5 52. Kg6 1-0

[Event "17th Asian Continental-ch Women 2018"]
[Site "Makati City"]
[Date "2018.12.14"]
[Round "5.5"]
[White "Li, Yunshan"]
[Black "Aulia, Medina Warda"]
[Result "1-0"]
[ECO "A00"]
[WhiteElo "2196"]
[BlackElo "2366"]
[PlyCount "127"]
[EventDate "2018.12.07"]
[EventType "swiss"]
[EventCountry "PHI"]
[TimeControl "40/5400+30:1800+30"]

1. d4 e6 2. c4 Nf6 3. g3 d5 4. Bg2 dxc4 5. Nf3 Bb4+ 6. Bd2 a5 7. O-O O-O 8. Bxb4 axb4 9. Ne5 Nc6 10. Bxc6 bxc6 11. Nxc4 Qd5 12. Ne3 Qh5 13. Nd2 Rd8 14. Nb3 Ba6 15. f3 e5 16. Nc2 exd4 17. Nxb4 Bb5 18. Qc2 Nd5 19. Nxd5 Rxd5 20. a4 Ba6 21. Qxc6 Rdd8 22. Nxd4 Qe5 23. Nb5 Qxe2 24. Nxc7 Qe3+ 25. Rf2 Rdc8 26. Qd6 Rab8 27. Qxa6 Rxc7 28. Qe2 Qc5 29. Kg2 h6 30. Qd3 Rcb7 31. Ra2 Rb3 32. Qe2 Qd5 33. Qe4 Qa5 34. Qe2 h5 35. Qd2 R3b4 36. h4 R8b6 37. Re2 Qc5 38. Qd8+ Kh7 39. Qg5 Qc4 40. b3 Qd3 41. Qxh5+ Rh6 42. Qxf7 Rf6 43. Qh5+ Rh6 44. Qc5 Rxb3 45. Qc2 Rf6 46. Qxd3+ Rxd3 47. Rf2 Ra6 48. a5 Rd5 49. g4 Raxa5 50. Rxa5 Rxa5 51. h5 Kh6 52. Kg3 Ra6 53. Re2 Rb6 54. Kh4 g5+ 55. hxg6 Kxg6 56. f4 Ra6 57. Re6+ Rxe6 58. f5+ Kf6 59. fxe6 Kxe6 60. Kg5 Kf7 61. Kh6 Kg8 62. g5 Kh8 63. g6 Kg8 64. g7 1-0

[Event "17th Asian Continental-ch Women 2018"]
[Site "Makati City"]
[Date "2018.12.14"]
[Round "5.6"]
[White "Bach, Ngoc Thuy Duong"]
[Black "Vo, Thi Kim Phung"]
[Result "0-1"]
[ECO "A00"]
[WhiteElo "2131"]
[BlackElo "2352"]
[PlyCount "88"]
[EventDate "2018.12.07"]
[EventType "swiss"]
[EventCountry "PHI"]
[TimeControl "40/5400+30:1800+30"]

1. d4 Nf6 2. c4 g6 3. Nc3 Bg7 4. e4 d6 5. Nf3 O-O 6. Be2 e5 7. O-O Nc6 8. d5 Ne7 9. b4 a5 10. Ba3 b6 11. bxa5 Rxa5 12. Bb4 Ra6 13. a4 Ne8 14. Ba3 Ra8 15. Bb2 Bh6 16. Bc1 Bxc1 17. Qxc1 Bg4 18. Nd2 Bxe2 19. Nxe2 Qd7 20. Nc3 g5 21. Nb3 h6 22. a5 bxa5 23. Nxa5 Ng6 24. Nc6 Rxa1 25. Qxa1 f5 26. exf5 Rxf5 27. Qb1 Ng7 28. Ne2 Nh4 29. Qe4 Rf8 30. f3 Qf7 31. g3 Nhf5 32. Rb1 Re8 33. Rb8 Rxb8 34. Nxb8 Qe8 35. Nc6 Qa8 36. f4 exf4 37. gxf4 Qa1+ 38. Kf2 Qf6 39. fxg5 hxg5 40. Ke1 Qa1+ 41. Kf2 Qf6 42. Ke1 Kf7 43. Ncd4 Nh4 44. Ng3 Qxd4 0-1

[Event "17th Asian Continental-ch Women 2018"]
[Site "Makati City"]
[Date "2018.12.14"]
[Round "5.7"]
[White "Citra, Dewi Ardhiani Anast"]
[Black "Doroy Allaney Jia G"]
[Result "1/2-1/2"]
[ECO "A00"]
[WhiteElo "2215"]
[BlackElo "1972"]
[PlyCount "96"]
[EventDate "2018.12.07"]
[EventType "swiss"]
[EventCountry "PHI"]
[TimeControl "40/5400+30:1800+30"]

1. b3 Nf6 2. Bb2 g6 3. e3 Bg7 4. Nf3 O-O 5. Be2 d5 6. c4 c5 7. cxd5 Qxd5 8. Nc3 Qd8 9. d4 Nc6 10. dxc5 Qa5 11. O-O Qxc5 12. Na4 Qa5 13. Bc3 Qc7 14. Qc1 Bf5 15. Qb2 Rac8 16. Rac1 Qb8 17. Nd4 Bg4 18. Nxc6 Rxc6 19. Be5 Qc8 20. Rxc6 bxc6 21. Bxg4 Qxg4 22. h3 Qb4 23. Rd1 c5 24. Qe2 h5 25. Bc3 Qa3 26. Qb2 Qxb2 27. Bxb2 Rc8 28. Rc1 Ne4 29. Bxg7 Kxg7 30. f3 Ng3 31. Kf2 h4 32. Nxc5 Rd8 33. Ke1 a5 34. Rc3 e5 35. a3 Kf6 36. Rc4 Nf5 37. Ne4+ Kg7 38. Ke2 Rb8 39. b4 axb4 40. axb4 Ra8 41. Rc2 Ra3 42. Rb2 Nxe3 43. b5 Nc4 44. Rc2 Ra4 45. Nc5 Rb4 46. Nd3 Ra4 47. Nb2 Ra2 48. Rxc4 Rxb2+ 1/2-1/2

[Event "17th Asian Continental-ch Women 2018"]
[Site "Makati City"]
[Date "2018.12.14"]
[Round "5.8"]
[White "Wang, Jue"]
[Black "Frayna, Janelle Mae"]
[Result "1-0"]
[ECO "A00"]
[WhiteElo "2367"]
[BlackElo "2228"]
[PlyCount "111"]
[EventDate "2018.12.07"]
[EventType "swiss"]
[EventCountry "PHI"]
[TimeControl "40/5400+30:1800+30"]

1. e4 c6 2. d4 d5 3. e5 c5 4. dxc5 e6 5. a3 Nc6 6. Nf3 Bxc5 7. b4 Bb6 8. Bd3 Nge7 9. Bb2 Ng6 10. O-O Nf4 11. c4 O-O 12. Nc3 Nxd3 13. Qxd3 dxc4 14. Qxc4 Bd7 15. Rad1 Ne7 16. Qg4 Nf5 17. Ne4 Kh8 18. Qh3 Qc8 19. Nfg5 h6 20. g4 Bb5 21. Rfe1 Ne7 22. Rc1 Qb8 23. Nd6 Be8 24. Nge4 Bc6 25. g5 Nf5 26. Nxf5 exf5 27. Qxf5 Qc8 28. Qxc8 Raxc8 29. gxh6 Bxe4 30. hxg7+ Kxg7 31. Rxe4 Kg6 32. Kg2 Kf5 33. Kf3 Rcd8 34. Rf4+ Ke6 35. Ke2 Rg8 36. Rcc4 Rg2 37. Rf6+ Ke7 38. Rcf4 Rxh2 39. Rxf7+ Ke6 40. R4f6+ Kd5 41. e6 Bxf2 42. Rxf2 Rxf2+ 43. Rxf2 Kxe6 44. Rf3 Rg8 45. Kd3 Kd5 46. Bd4 a6 47. Bf2 Rg7 48. Rf6 Rh7 49. Bg3 Rd7 50. Rb6 Rd8 51. Bh2 Rd7 52. a4 Rd8 53. a5 Rd7 54. Rh6 Rd8 55. Rh7 Ke6+ 56. Kc4 1-0

[Event "17th Asian Continental-ch Women 2018"]
[Site "Makati City"]
[Date "2018.12.14"]
[Round "5.9"]
[White "Li, Xueyi"]
[Black "Alinasab, Mobina"]
[Result "1-0"]
[ECO "A00"]
[WhiteElo "2187"]
[BlackElo "2295"]
[PlyCount "55"]
[EventDate "2018.12.07"]
[EventType "swiss"]
[EventCountry "PHI"]
[TimeControl "40/5400+30:1800+30"]

1. d4 Nf6 2. c4 e6 3. g3 c5 4. Nf3 cxd4 5. Nxd4 d5 6. Bg2 e5 7. Nf3 d4 8. O-O Nc6 9. e3 Be7 10. exd4 exd4 11. Bf4 O-O 12. Ne5 Qb6 13. Qb3 Qxb3 14. axb3 Bd7 15. Rd1 Rfd8 16. Na3 Nh5 17. Nxd7 Nxf4 18. Bxc6 bxc6 19. Ne5 Ne6 20. Nxc6 Rd7 21. Nxe7+ Rxe7 22. Nb5 Rd7 23. b4 Rb8 24. Nxa7 Rxb4 25. Nc6 Rxc4 26. Ne5 Rcc7 27. Nxd7 Rxd7 28. Rac1 1-0

[Event "17th Asian Continental-ch Women 2018"]
[Site "Makati City"]
[Date "2018.12.14"]
[Round "5.10"]
[White "Nandhidhaa, P V"]
[Black "Makhija, Aashna"]
[Result "1/2-1/2"]
[ECO "A00"]
[WhiteElo "2267"]
[BlackElo "2181"]
[PlyCount "48"]
[EventDate "2018.12.07"]
[EventType "swiss"]
[EventCountry "PHI"]
[TimeControl "40/5400+30:1800+30"]

1. Nf3 Nf6 2. g3 d5 3. Bg2 e6 4. O-O Be7 5. c4 O-O 6. b3 c5 7. Bb2 Nc6 8. cxd5 Nxd5 9. d4 cxd4 10. Nxd4 Bd7 11. Na3 Rc8 12. Nc4 Nxd4 13. Qxd4 Bf6 14. Qxa7 Bxb2 15. Nxb2 Rc2 16. Nc4 Bc6 17. e4 Nc3 18. Rfe1 Qf6 19. e5 Qf5 20. Bxc6 bxc6 21. Qe3 Nd5 22. Qd4 c5 23. Qxc5 Nf4 24. gxf4 Qg4+ 1/2-1/2

[Event "17th Asian Continental-ch Women 2018"]
[Site "Makati City"]
[Date "2018.12.14"]
[Round "5.11"]
[White "San Diego, Marie Antoinette"]
[Black "Nguyen, Thi Thanh An"]
[Result "0-1"]
[ECO "A00"]
[WhiteElo "2111"]
[BlackElo "2262"]
[PlyCount "110"]
[EventDate "2018.12.07"]
[EventType "swiss"]
[EventCountry "PHI"]
[TimeControl "40/5400+30:1800+30"]

1. d4 Nf6 2. c4 g6 3. Nc3 Bg7 4. e4 d6 5. h3 O-O 6. Be3 c5 7. d5 e6 8. Nf3 exd5 9. exd5 Na6 10. Bd3 Nb4 11. Bb1 b5 12. a3 Qa5 13. O-O bxc4 14. Nd2 Nbxd5 15. Nxc4 Nxe3 16. Nxa5 Nxd1 17. Rxd1 d5 18. Ba2 c4 19. Nc6 Be6 20. Rab1 Rfe8 21. Nd4 a6 22. b3 cxb3 23. Rxb3 Rac8 24. Nce2 Nd7 25. Rb7 Nc5 26. Rb6 Bf8 27. Nf4 Na4 28. Rxa6 Nc3 29. Rd2 Bh6 30. g3 Bxf4 31. gxf4 Ra8 32. Rc6 Rxa3 33. Bb3 Ne4 34. Re2 Rb8 35. Nxe6 Raxb3 36. Nc7 Nc3 37. Re7 Kf8 38. Rd7 Ne2+ 39. Kh2 Nxf4 40. f3 Rxf3 41. Rc2 Rxh3+ 42. Kg1 Rb1+ 43. Kf2 Rh2+ 44. Ke3 Rxc2 45. Kxf4 Rxc7 46. Rxc7 Rf1+ 47. Kg5 Rf5+ 48. Kh4 Kg7 49. Rd7 h6 50. Kg4 h5+ 51. Kh4 Kh6 52. Kg3 g5 53. Rd6+ f6 54. Kh3 g4+ 55. Kg2 h4 0-1